{"text_format":"3","workbook":"xlsx","n_sheets":1,"sheets":["ΚΌΣΤΟΣ ΑΝΑΚΑΙΝΙΣΗΣ"],"not_rendered":{"images":2,"defined_names":4},"read":"whole","date_system":"1900"}

{"sheet":"ΚΌΣΤΟΣ ΑΝΑΚΑΙΝΙΣΗΣ","index":0,"n_rows":28,"n_cols":8,"rows_kept":28,"merged":[[25,1,25,5],[26,1,26,5],[27,1,27,5]]}
[null,"ΥΠΟΛΟΓΙΣΜΟΣ ΚΟΣΤΟΥΣ ΑΝΑΚΑΙΝΙΣΗΣ ΚΟΥΖΙΝΑΣ"]
[]
[null,"Κατηγορία","Είδη","Ποσότητα","Εκτιμώμενο κόστος","Πραγματικό κόστος","Συνολικό εκτιμώμενο κόστος","Συνολικό πραγματικό κόστος"]
[null,"Ντουλάπια","Κάτω ντουλάπια: Αρθρωτά-Τυπικά (ποσότητα σε μέτρα)",25,{"v":5,"d":"5.00 €"},null,{"$f":"Δεδομένα[[#This Row],[Ποσότητα]]*Δεδομένα[[#This Row],[Εκτιμώμενο κόστος]]","v":{"v":125,"d":"125 €"}},{"$f":"Δεδομένα[[#This Row],[Ποσότητα]]*Δεδομένα[[#This Row],[Πραγματικό κόστος]]","v":{"v":0,"d":"0 €"}}]
[null,"Ντουλάπια","Επάνω ντουλάπια: Αρθρωτά-Τυπικά (ποσότητα σε μέτρα)",25,{"v":3.5,"d":"3.50 €"},null,{"$f":"Δεδομένα[[#This Row],[Ποσότητα]]*Δεδομένα[[#This Row],[Εκτιμώμενο κόστος]]","v":{"v":87.5,"d":"88 €"}},{"$f":"Δεδομένα[[#This Row],[Ποσότητα]]*Δεδομένα[[#This Row],[Πραγματικό κόστος]]","v":{"v":0,"d":"0 €"}}]
[null,"Συσκευές καθαρισμού","Πλυντήριο πιάτων: Τυπικό",1,{"v":250,"d":"250.00 €"},null,{"$f":"Δεδομένα[[#This Row],[Ποσότητα]]*Δεδομένα[[#This Row],[Εκτιμώμενο κόστος]]","v":{"v":250,"d":"250 €"}},{"$f":"Δεδομένα[[#This Row],[Ποσότητα]]*Δεδομένα[[#This Row],[Πραγματικό κόστος]]","v":{"v":0,"d":"0 €"}}]
[null,"Συσκευές καθαρισμού","Απόρριψη: Τυπικό",1,{"v":175,"d":"175.00 €"},null,{"$f":"Δεδομένα[[#This Row],[Ποσότητα]]*Δεδομένα[[#This Row],[Εκτιμώμενο κόστος]]","v":{"v":175,"d":"175 €"}},{"$f":"Δεδομένα[[#This Row],[Ποσότητα]]*Δεδομένα[[#This Row],[Πραγματικό κόστος]]","v":{"v":0,"d":"0 €"}}]
[null,"Συσκευές μαγειρέματος","Περιοχή: Τυπικά συρόμενα",1,{"v":375,"d":"375.00 €"},null,{"$f":"Δεδομένα[[#This Row],[Ποσότητα]]*Δεδομένα[[#This Row],[Εκτιμώμενο κόστος]]","v":{"v":375,"d":"375 €"}},{"$f":"Δεδομένα[[#This Row],[Ποσότητα]]*Δεδομένα[[#This Row],[Πραγματικό κόστος]]","v":{"v":0,"d":"0 €"}}]
[null,"Συσκευές μαγειρέματος","Φούρνος μικροκυμάτων: Τυπικό",1,{"v":300,"d":"300.00 €"},null,{"$f":"Δεδομένα[[#This Row],[Ποσότητα]]*Δεδομένα[[#This Row],[Εκτιμώμενο κόστος]]","v":{"v":300,"d":"300 €"}},{"$f":"Δεδομένα[[#This Row],[Ποσότητα]]*Δεδομένα[[#This Row],[Πραγματικό κόστος]]","v":{"v":0,"d":"0 €"}}]
[null,"Πάγκοι","Επιφάνεια μασίφ (ποσότητα σε μέτρα)",23,{"v":10,"d":"10.00 €"},null,{"$f":"Δεδομένα[[#This Row],[Ποσότητα]]*Δεδομένα[[#This Row],[Εκτιμώμενο κόστος]]","v":{"v":230,"d":"230 €"}},{"$f":"Δεδομένα[[#This Row],[Ποσότητα]]*Δεδομένα[[#This Row],[Πραγματικό κόστος]]","v":{"v":0,"d":"0 €"}}]
[null,"Πόρτες","Εσωτερικό: Επένδυση με καπλαμά",1,{"v":65,"d":"65.00 €"},null,{"$f":"Δεδομένα[[#This Row],[Ποσότητα]]*Δεδομένα[[#This Row],[Εκτιμώμενο κόστος]]","v":{"v":65,"d":"65 €"}},{"$f":"Δεδομένα[[#This Row],[Ποσότητα]]*Δεδομένα[[#This Row],[Πραγματικό κόστος]]","v":{"v":0,"d":"0 €"}}]
[null,"Πρόσθετα","Πρόσθετα: Στάνταρ ζεστό νερό ",1,{"v":120,"d":"120.00 €"},null,{"$f":"Δεδομένα[[#This Row],[Ποσότητα]]*Δεδομένα[[#This Row],[Εκτιμώμενο κόστος]]","v":{"v":120,"d":"120 €"}},{"$f":"Δεδομένα[[#This Row],[Ποσότητα]]*Δεδομένα[[#This Row],[Πραγματικό κόστος]]","v":{"v":0,"d":"0 €"}}]
[null,"Πρόσθετα","Πρόσθετα: Δοχείο κρεμοσάπουνου",1,{"v":40,"d":"40.00 €"},null,{"$f":"Δεδομένα[[#This Row],[Ποσότητα]]*Δεδομένα[[#This Row],[Εκτιμώμενο κόστος]]","v":{"v":40,"d":"40 €"}},{"$f":"Δεδομένα[[#This Row],[Ποσότητα]]*Δεδομένα[[#This Row],[Πραγματικό κόστος]]","v":{"v":0,"d":"0 €"}}]
[null,"Μπαταρίες","Μπαταρία: Μοχλός, Τυπική",1,{"v":130,"d":"130.00 €"},null,{"$f":"Δεδομένα[[#This Row],[Ποσότητα]]*Δεδομένα[[#This Row],[Εκτιμώμενο κόστος]]","v":{"v":130,"d":"130 €"}},{"$f":"Δεδομένα[[#This Row],[Ποσότητα]]*Δεδομένα[[#This Row],[Πραγματικό κόστος]]","v":{"v":0,"d":"0 €"}}]
[null,"Δάπεδα","Υλικό Laminate (ποσότητα σε τετραγωνικά μέτρα)",165,{"v":3.5,"d":"3.50 €"},null,{"$f":"Δεδομένα[[#This Row],[Ποσότητα]]*Δεδομένα[[#This Row],[Εκτιμώμενο κόστος]]","v":{"v":577.5,"d":"578 €"}},{"$f":"Δεδομένα[[#This Row],[Ποσότητα]]*Δεδομένα[[#This Row],[Πραγματικό κόστος]]","v":{"v":0,"d":"0 €"}}]
[null,"Συσκευές πλύσης ρούχων","Πλυντήριο: Τυπικό",1,{"v":500,"d":"500.00 €"},null,{"$f":"Δεδομένα[[#This Row],[Ποσότητα]]*Δεδομένα[[#This Row],[Εκτιμώμενο κόστος]]","v":{"v":500,"d":"500 €"}},{"$f":"Δεδομένα[[#This Row],[Ποσότητα]]*Δεδομένα[[#This Row],[Πραγματικό κόστος]]","v":{"v":0,"d":"0 €"}}]
[null,"Συσκευές πλύσης ρούχων","Στεγνωτήριο: Τυπικό",1,{"v":375,"d":"375.00 €"},null,{"$f":"Δεδομένα[[#This Row],[Ποσότητα]]*Δεδομένα[[#This Row],[Εκτιμώμενο κόστος]]","v":{"v":375,"d":"375 €"}},{"$f":"Δεδομένα[[#This Row],[Ποσότητα]]*Δεδομένα[[#This Row],[Πραγματικό κόστος]]","v":{"v":0,"d":"0 €"}}]
[null,"Φωτισμός","Φωτισμός: Κυλινδρικά σποτάκια",4,{"v":35,"d":"35.00 €"},null,{"$f":"Δεδομένα[[#This Row],[Ποσότητα]]*Δεδομένα[[#This Row],[Εκτιμώμενο κόστος]]","v":{"v":140,"d":"140 €"}},{"$f":"Δεδομένα[[#This Row],[Ποσότητα]]*Δεδομένα[[#This Row],[Πραγματικό κόστος]]","v":{"v":0,"d":"0 €"}}]
[null,"Ψυγεία","Ψυγείο: Εξωτερικό, Πολυτελείας",1,{"v":1200,"d":"1,200.00 €"},null,{"$f":"Δεδομένα[[#This Row],[Ποσότητα]]*Δεδομένα[[#This Row],[Εκτιμώμενο κόστος]]","v":{"v":1200,"d":"1,200 €"}},{"$f":"Δεδομένα[[#This Row],[Ποσότητα]]*Δεδομένα[[#This Row],[Πραγματικό κόστος]]","v":{"v":0,"d":"0 €"}}]
[null,"Νιπτήρες","Πολυτελείας με δύο λεκάνες, ανοξείδωτος χάλυβας ",1,{"v":125,"d":"125.00 €"},null,{"$f":"Δεδομένα[[#This Row],[Ποσότητα]]*Δεδομένα[[#This Row],[Εκτιμώμενο κόστος]]","v":{"v":125,"d":"125 €"}},{"$f":"Δεδομένα[[#This Row],[Ποσότητα]]*Δεδομένα[[#This Row],[Πραγματικό κόστος]]","v":{"v":0,"d":"0 €"}}]
[null,"Εξαερισμός","Μονάδα απορροφητήρα: Τυπική με αγωγούς",1,{"v":180,"d":"180.00 €"},null,{"$f":"Δεδομένα[[#This Row],[Ποσότητα]]*Δεδομένα[[#This Row],[Εκτιμώμενο κόστος]]","v":{"v":180,"d":"180 €"}},{"$f":"Δεδομένα[[#This Row],[Ποσότητα]]*Δεδομένα[[#This Row],[Πραγματικό κόστος]]","v":{"v":0,"d":"0 €"}}]
[null,"Τοίχοι","Γυψοσανίδα (ποσότητα σε τετραγωνικά μέτρα)",70,{"v":2,"d":"2.00 €"},null,{"$f":"Δεδομένα[[#This Row],[Ποσότητα]]*Δεδομένα[[#This Row],[Εκτιμώμενο κόστος]]","v":{"v":140,"d":"140 €"}},{"$f":"Δεδομένα[[#This Row],[Ποσότητα]]*Δεδομένα[[#This Row],[Πραγματικό κόστος]]","v":{"v":0,"d":"0 €"}}]
[null,"Παράθυρα","Συρόμενα",2,{"v":120,"d":"120.00 €"},null,{"$f":"Δεδομένα[[#This Row],[Ποσότητα]]*Δεδομένα[[#This Row],[Εκτιμώμενο κόστος]]","v":{"v":240,"d":"240 €"}},{"$f":"Δεδομένα[[#This Row],[Ποσότητα]]*Δεδομένα[[#This Row],[Πραγματικό κόστος]]","v":{"v":0,"d":"0 €"}}]
[null,"Άλλο",{"$nulls":4},{"$f":"Δεδομένα[[#This Row],[Ποσότητα]]*Δεδομένα[[#This Row],[Εκτιμώμενο κόστος]]","v":{"v":0,"d":"0 €"}},{"$f":"Δεδομένα[[#This Row],[Ποσότητα]]*Δεδομένα[[#This Row],[Πραγματικό κόστος]]","v":{"v":0,"d":"0 €"}}]
[null,"Σύνολο",null,null,{"$f":"SUBTOTAL(109,Δεδομένα[Εκτιμώμενο κόστος])","v":{"v":4014,"d":"4,014.00 €"}},{"$f":"SUBTOTAL(109,Δεδομένα[Πραγματικό κόστος])","v":{"v":0,"d":"0.00 €"}},{"$f":"SUBTOTAL(109,Δεδομένα[Συνολικό εκτιμώμενο κόστος])","v":{"v":5375,"d":"5,375.00 €"}},{"$f":"SUBTOTAL(109,Δεδομένα[Συνολικό πραγματικό κόστος])","v":{"v":0,"d":"0.00 €"}}]
[null,"Μερικό άθροισμα",{"$nulls":4},{"$f":"SUBTOTAL(109,Δεδομένα[Συνολικό εκτιμώμενο κόστος])","v":{"v":5375,"d":"5,375.00 €"}},{"$f":"SUBTOTAL(109,Δεδομένα[Συνολικό πραγματικό κόστος])","v":{"v":0,"d":"0.00 €"}}]
[null,"Μη αναμενόμενες δαπάνες - Προσθήκη 30%",{"$nulls":4},{"$f":"G26*0.3","v":{"v":1612.5,"d":"1,612.50 €"}},{"$f":"H26*0.3","v":{"v":0,"d":"0.00 €"}}]
[null,"Σύνολο",{"$nulls":4},{"$f":"SUM(G26:G27)","v":{"v":6987.5,"d":"6,987.50 €"}},{"$f":"SUM(H26:H27)","v":{"v":0,"d":"0.00 €"}}]